bitfinex-derivatives/quotes_SOLF0:USTF0_20260202
["timestamp","ask_amount","ask_price","bid_price","bid_amount"]
[1769993829377,147.18051628,102.12,102.04,2.77948636]
[1769993829572,18.78021628,102.1,102.04,2.77948636]
[1769993829778,156.03401628,102.1,102.04,2.77948636]
[1769993830181,8.8235,102.1,102.04,2.77948636]
[1769993830368,18.77861628,102.12,102.04,19.22959752]
[1769993830677,137.2116,102.13,102.04,2.77948636]
[1769993830880,9.95671628,102.1,102.04,2.77948636]
[1769993831077,9.95671628,102.08,102.04,2.77948636]
[1769993831269,147.23511628,102.08,102.02,16.45011116]
[1769993831469,8.8262,102.07,101.99,16.45011116]
[1769993831671,9.95671628,102.08,102.0,16.45011116]
[1769993832571,18.78201628,102.08,102.01,16.44217268]
[1769993833174,9.95671628,102.06,101.98,25.27517268]
[1769993833379,8.8261,102.07,101.99,16.44217268]
[1769993833783,8.8261,102.07,101.99,25.27457268]
[1769993834176,147.23541628,102.08,102.0,16.44217268]
[1769993834377,294.25541628,102.08,102.0,16.44217268]
[1769993835277,303.08071628,102.08,102.0,16.44217268]
[1769993835582,294.25541628,102.08,102.0,16.44217268]
[1769993835777,8.8264,102.07,102.0,16.44217268]
[1769993835977,156.97671628,102.08,102.0,16.44217268]
[1769993836377,165.80191628,102.08,102.01,16.37561353]
[1769993836578,9.95671628,102.08,102.01,16.37561353]
[1769993837081,422.48801628,102.1,102.01,16.37561353]
[1769993837486,9.95671628,102.11,102.03,16.37561353]
[1769993837680,137.2507,102.1,102.03,16.37561353]
[1769993837880,137.2507,102.1,102.0,16.37561353]
[1769993838185,9.95671628,102.09,102.0,16.37561353]
[1769993838985,147.30161628,102.03,101.96,16.38177589]
[1769993839178,9.95671628,102.04,101.96,16.38177589]
[1769993839379,18.78211628,102.08,102.0,16.38177589]
[1769993839579,8.8254,102.08,102.0,16.38177589]
[1769993839784,137.2637,102.1,102.01,16.38177589]
[1769993839981,137.2637,102.1,101.98,9.95671628]
[1769993839982,137.2654,102.09,102.02,16.38177589]
[1769993840182,147.21551628,102.1,102.02,16.38177589]
[1769993840378,8.8262,102.07,102.0,16.33978217]
[1769993840581,146.1175,102.07,102.0,16.33978217]
[1769993841086,18.78391628,102.06,102.0,16.33978217]
[1769993841687,339.6,102.09,102.02,16.33978217]
[1769993841990,339.8,102.13,102.05,16.33978217]
[1769993842190,8.8217,102.12,102.05,16.33978217]
[1769993842390,137.224,102.12,102.05,16.33978217]
[1769993842886,137.224,102.12,102.01,137.3604]
[1769993842887,8.8236,102.1,102.02,25.22165504]
[1769993843082,137.2549,102.1,102.02,16.39215504]
[1769993843286,8.8244,102.09,102.02,16.39215504]
[1769993844691,8.8252,102.08,102.02,16.39215504]
[1769993845590,278.9437,102.1,102.02,16.39215504]
[1769993845792,270.12,102.1,102.03,16.41964013]
[1769993846792,278.9438,102.1,102.03,16.41964013]
[1769993847196,8.8238,102.1,102.03,16.41964013]
[1769993848186,137.2687,102.09,102.01,16.40212669]
[1769993848385,281.0487,102.09,102.01,16.40212669]
[1769993848896,137.2932,102.07,101.98,25.23214852]
[1769993849801,8.8277,102.05,101.98,25.23214852]
[1769993850706,8.8277,102.05,101.99,16.39772273]
[1769993851402,137.2932,102.07,102.0,16.39772273]
[1769993851403,8.8266,102.07,102.0,16.39772273]
[1769993851598,123.6,102.08,102.0,16.39772273]
[1769993851599,260.8788,102.08,102.0,16.39772273]
[1769993852200,8.827,102.06,102.0,16.39772273]
[1769993852401,123.6,102.08,102.0,16.39772273]
[1769993852598,9.98709316,102.09,102.01,16.40475498]
[1769993852803,8.8242,102.09,102.01,25.23535498]
[1769993853002,137.2916,102.07,101.98,16.40475498]
[1769993853220,9.98709316,102.07,101.98,16.40475498]
[1769993853504,137.3093,102.06,101.98,16.40475498]
[1769993854408,9.98709316,102.07,101.99,16.42044837]
[1769993854909,146.3,102.08,102.0,16.42044837]
[1769993855209,146.3,102.08,102.01,16.42044837]
[1769993855706,155.125,102.08,102.01,25.25094837]
[1769993856008,146.3,102.08,102.01,16.42044837]
[1769993856309,137.2519,102.1,102.01,16.42044837]
[1769993856508,8.8251,102.08,102.02,16.37188638]
[1769993856910,8.8251,102.08,102.0,16.37188638]
[1769993857104,8.8251,102.08,102.01,25.20288638]
[1769993857304,8.8251,102.08,101.99,137.3979]
[1769993857305,405.58479316,102.11,102.02,16.37188638]
[1769993858002,268.34709316,102.11,102.02,16.37188638]
[1769993858208,9.98709316,102.11,102.02,16.37188638]
[1769993858711,8.8241,102.09,102.02,16.37188638]
[1769993858900,351.10709316,102.11,102.02,16.37188638]
[1769993859613,341.12,102.11,102.02,16.37188638]
[1769993860411,8.8236,102.1,102.03,25.18813922]
[1769993860711,341.12,102.11,102.03,16.35903922]
[1769993861310,498.7763,102.13,102.03,16.35903922]
[1769993861607,8.8226,102.11,102.04,25.18703922]
[1769993861806,9.98709316,102.1,102.02,16.35903922]
[1769993864313,8.8241,102.09,102.02,25.18913922]
[1769993865416,341.44,102.11,102.03,25.17015608]
[1769993865816,341.44,102.11,102.04,16.34095608]
[1769993866710,341.44,102.11,102.04,25.16935608]
[1769993867217,9.98709316,102.12,102.04,25.16935608]
[1769993867517,8.8224,102.11,102.04,25.16935608]
[1769993868510,8.8224,102.11,102.02,137.358]
[1769993868511,137.2408,102.11,102.02,25.18144929]
[1769993868715,479.2408,102.11,102.02,25.18144929]
[1769993869422,147.23959316,102.1,102.02,16.35194929]
[1769993870810,8.824,102.1,102.03,16.3477913]
[1769993871519,342.44,102.11,102.04,16.3477913]
[1769993871918,342.44,102.11,102.05,8.8274]
[1769993872118,137.1818,102.16,102.07,16.3477913]
[1769993873316,8.819,102.15,102.07,25.1735913]
[1769993873520,137.1886,102.15,102.07,16.3477913]
[1769993874114,8.8207,102.13,102.07,16.3477913]
[1769993874520,137.2121,102.13,102.04,16.38380798]
[1769993874729,9.98709316,102.12,102.04,16.38380798]
[1769993874926,147.21459316,102.12,102.04,16.38380798]
[1769993875328,490.03459316,102.12,102.04,16.38380798]
[1769993875525,8.8236,102.1,102.03,8.8285]
[1769993876225,8.8243,102.09,102.02,16.38380798]
[1769993877021,156.05099316,102.11,102.02,25.21370798]
[1769993877219,147.22789316,102.11,102.02,16.38380798]
[1769993877618,8.8241,102.09,102.02,16.38380798]
[1769993878229,8.8241,102.09,102.02,25.21390798]
[1769993878821,342.86,102.1,102.04,16.3644405]
[1769993879531,351.6833,102.1,102.04,16.3644405]
[1769993880430,8.8233,102.1,102.04,16.3644405]
[1769993881731,9.98709316,102.09,102.02,25.19430123]
[1769993881932,354.66709316,102.09,102.02,25.19430123]
[1769993882234,354.66709316,102.09,102.0,16.36416836]
[1769993882235,137.278,102.08,102.0,16.36416836]
[1769993882424,9.98709316,102.07,102.0,16.36416836]
[1769993882628,8.8275,102.05,101.98,8.8335]
[1769993882930,9.98709316,102.05,101.98,16.36416836]
[1769993883232,345.14,102.04,101.96,16.36416836]
[1769993884433,8.8293,102.03,101.96,25.19886836]
[1769993884642,8.8293,102.03,101.97,16.35970253]
[1769993884825,345.56,102.04,101.97,25.19380253]
[1769993885024,9.98709316,102.09,101.99,16.35970253]
[1769993885229,78.2,102.1,102.02,16.35970253]
[1769993885430,215.4519,102.1,102.02,16.35970253]
[1769993885629,78.2,102.1,102.02,16.35970253]
[1769993886032,8.825,102.08,102.02,16.35970253]
[1769993887539,210.66,102.09,102.02,16.35970253]
[1769993888338,219.4841,102.09,102.02,25.18980253]
[1769993888834,346.56,102.08,102.0,16.3318632]
[1769993890139,355.3851,102.08,102.01,8.831]
[1769993891438,356.7451,102.08,102.01,8.831]
[1769993891735,356.9441,102.09,102.02,25.1605479]
[1769993893741,8.825,102.08,102.02,16.3304479]
[1769993894238,349.46,102.08,102.01,16.3296271]
[1769993894543,349.46,102.08,102.02,8.8301]
[1769993895436,350.08,102.08,102.02,8.8301]
[1769993895735,350.24,102.08,102.02,8.8301]
[1769993896438,20.0,102.1,102.03,25.1558401]
[1769993896643,370.66,102.1,102.01,16.3266401]
[1769993897143,20.0,102.1,102.01,16.3266401]
[1769993897344,18.81289316,102.07,102.0,8.8312]
[1769993897838,8.8258,102.07,102.0,25.1578401]
[1769993898141,138.1258,102.07,102.0,25.1578401]
[1769993898641,8.8258,102.07,102.0,25.1578401]
[1769993898842,275.0858,102.07,102.0,25.1578401]
[1769993899243,8.8258,102.07,102.0,25.1578401]
[1769993899442,359.5858,102.07,102.0,25.1578401]
[1769993900044,359.5858,102.07,102.01,25.15736035]
[1769993901347,8.8258,102.07,102.01,25.15736035]
[1769993904041,361.70709316,102.08,102.02,16.33197722]
[1769993904346,353.3,102.1,102.02,16.33197722]
[1769993905252,9.99029557,102.11,102.02,16.33197722]
[1769993905451,9.99029557,102.11,102.03,8.8291]
[1769993905452,362.6241,102.09,102.03,8.8291]
[1769993905747,137.2086,102.14,102.05,16.33747758]
[1769993906051,137.2086,102.14,102.04,137.3311]
[1769993906052,8.8215,102.13,102.07,8.8258]
[1769993906252,168.18,102.14,102.07,16.33779765]
[1769993907048,9.99029557,102.17,102.09,16.33779765]
[1769993907352,252.42,102.18,102.1,16.33779765]
[1769993907554,252.42,102.18,102.11,25.16009765]
[1769993907846,137.1281,102.2,102.12,16.33779765]
[1769993907847,354.12,102.2,102.12,16.33779765]
[1769993908047,354.12,102.2,102.13,16.33779765]
[1769993908246,354.12,102.2,102.14,25.16123419]
[1769993908449,354.12,102.2,102.15,16.34173419]
[1769993909552,8.813,102.22,102.15,16.34173419]
[1769993909747,363.733,102.22,102.15,16.34173419]
[1769993909949,363.733,102.22,102.09,16.34173419]
[1769993909950,137.1441,102.18,102.09,16.34173419]
[1769993910148,9.99029557,102.17,102.09,16.34173419]
[1769993910352,292.80769557,102.17,102.09,16.34173419]
[1769993910654,9.99029557,102.15,102.09,16.34173419]
[1769993911254,18.80939557,102.15,102.09,16.34173419]
[1769993911449,9.99029557,102.15,102.09,16.34173419]
[1769993911657,289.94,102.16,102.1,16.34031794]
[1769993913351,9.99029557,102.15,102.07,16.34023842]
[1769993913748,9.99029557,102.13,102.07,16.34023842]
[1769993913952,18.81109557,102.13,102.07,16.34023842]
[1769993914757,9.99029557,102.13,102.07,16.34023842]
[1769993915950,365.85029557,102.15,102.07,16.34023842]
[1769993916154,374.66939557,102.15,102.07,16.34023842]
[1769993917459,374.66939557,102.15,102.07,25.16563842]
[1769993917759,8.8191,102.15,102.08,16.36924423]
[1769993917956,8.8191,102.15,102.08,25.19404423]
[1769993918554,356.44,102.16,102.08,25.19404423]
[1769993918755,9.99029557,102.15,102.08,16.36924423]
[1769993919953,147.17639557,102.15,102.08,16.36924423]
[1769993920158,9.99029557,102.15,102.08,16.37012844]
[1769993921064,367.67029557,102.17,102.09,16.37020959]
[1769993921459,376.48799557,102.17,102.1,25.19330959]
[1769993921659,20.0,102.21,102.08,137.2771]
[1769993921660,9.99029557,102.21,102.13,16.37020959]
[1769993921862,367.93029557,102.21,102.13,16.37020959]
[1769993922162,9.99029557,102.21,102.13,16.37020959]
[1769993922360,9.99029557,102.23,102.15,16.36798809]
[1769993922552,137.0763,102.23,102.15,16.36798809]
[1769993922756,147.06659557,102.23,102.15,16.36798809]
[1769993923557,8.813,102.22,102.15,16.36798809]
[1769993924357,8.813,102.22,102.15,25.18668809]
[1769993925755,145.8766,102.24,102.15,25.18668809]
[1769993925957,248.8719,102.24,102.16,25.21938348]
[1769993927754,248.8719,102.24,102.17,25.2215338]
[1769993927960,240.06,102.24,102.18,16.4044338]
[1769993928161,240.06,102.24,102.15,16.4044338]
[1769993929357,8.8121,102.23,102.16,16.36254664]
[1769993930463,8.8129,102.22,102.16,16.36254664]
[1769993930656,9.99029557,102.23,102.16,16.36254664]
[1769993930853,472.20209557,102.25,102.17,16.35221623]
[1769993931058,8.8117,102.24,102.17,16.35221623]
[1769993932459,8.8117,102.24,102.18,16.35052862]
[1769993934064,325.16,102.25,102.18,25.16672862]
[1769993935165,8.8112,102.24,102.16,25.16640929]
[1769993935362,472.20129557,102.25,102.16,25.16640929]
[1769993936456,8.8122,102.23,102.16,25.16640929]
[1769993939562,18.80249557,102.23,102.16,25.16640929]
[1769993940461,369.1311,102.24,102.17,25.16510554]
[1769993940768,360.32,102.24,102.17,25.16510554]
[1769993941068,360.32,102.24,102.17,16.34810554]
[1769993941257,8.8121,102.23,102.17,16.34810554]
[1769993941463,360.32,102.24,102.17,16.34810554]
[1769993941666,360.32,102.24,102.17,25.16510554]
[1769993941962,8.8121,102.23,102.17,16.34810554]
[1769993942463,370.8121,102.23,102.17,25.16520554]
[1769993943265,362.0,102.23,102.17,25.16520554]
[1769993943465,8.8112,102.24,102.17,25.16520554]
[1769993944468,371.3903,102.25,102.18,25.18728283]
[1769993944663,369.83973959,102.25,102.18,25.18728283]
[1769993945867,361.02943959,102.25,102.19,25.18638283]
[1769993946581,361.02943959,102.25,102.2,8.8144]
[1769993946771,361.02943959,102.25,102.21,16.39493417]
[1769993946972,500.9944,102.3,102.21,16.39493417]
[1769993947176,136.9944,102.3,102.21,16.39493417]
[1769993947479,456.7344,102.3,102.21,16.39493417]
[1769993947772,137.0145,102.28,102.18,16.39500234]
[1769993947979,364.26,102.27,102.18,16.39500234]
[1769993948175,137.0365,102.26,102.18,16.39500234]
[1769993948379,302.7565,102.26,102.18,16.39500234]
[1769993948576,8.8112,102.24,102.18,25.21120234]
[1769993951483,165.72,102.26,102.19,16.40539503]
[1769993952380,8.8103,102.25,102.19,16.40539503]
[1769993953588,8.8111,102.24,102.19,16.40539503]
[1769993954587,8.8103,102.25,102.19,16.40539503]
[1769993955591,8.8112,102.24,102.19,16.40539503]
[1769993955785,147.04249557,102.25,102.17,25.18544215]
[1769993955984,185.72,102.26,102.14,137.184]
[1769993955985,147.06679557,102.23,102.14,16.36834215]
[1769993956389,320.92679557,102.23,102.14,16.36834215]
[1769993956691,137.0913,102.22,102.14,16.36834215]
[1769993956886,9.99029557,102.21,102.14,16.36834215]
[1769993957291,8.8137,102.22,102.15,16.34683771]
[1769993957892,320.92749557,102.23,102.15,16.34683771]
[1769993958284,18.80309557,102.23,102.16,16.37986145]
[1769993958790,8.8128,102.23,102.16,16.37986145]
[1769993958990,8.811,102.25,102.18,16.37986145]
[1769993959392,147.04089557,102.25,102.16,16.37986145]
[1769993959587,8.8113,102.24,102.17,16.37986145]
[1769993960983,364.76,102.26,102.18,16.53488218]
[1769993961183,147.02129557,102.27,102.18,16.53488218]
[1769993961394,511.70129557,102.27,102.18,16.53488218]
[1769993962294,8.8104,102.25,102.18,25.35108218]
[1769993964000,8.8104,102.25,102.19,16.55026452]
[1769993964191,137.0125,102.28,102.2,16.55026452]
[1769993965192,146.97924536,102.27,102.2,16.55026452]
[1769993966296,137.0436,102.26,102.18,16.55821626]
[1769993967396,8.8113,102.24,102.18,16.55821626]
[1769993967597,9.95604536,102.27,102.18,16.55821626]
[1769993967893,137.0213,102.28,102.19,16.56183977]
[1769993968092,146.92904536,102.31,102.22,16.56183977]
[1769993968293,136.955,102.33,102.24,16.55827146]
[1769993968498,8.8035,102.33,102.26,25.36757146]
[1769993968699,388.99,102.34,102.26,16.55827146]
[1769993968997,9.95604536,102.33,102.26,16.55827146]
[1769993969195,8.8044,102.32,102.26,16.55827146]
[1769993969400,136.9562,102.32,102.24,16.55827146]
[1769993969799,8.806,102.3,102.24,16.55827146]
[1769993970002,136.9562,102.32,102.24,16.55827146]
[1769993970496,8.8052,102.31,102.24,16.55827146]
[1769993970997,8.8062,102.3,102.24,16.55827146]
[1769993971204,9.95604536,102.29,102.22,16.56530935]
[1769993971500,152.3,102.3,102.22,16.56530935]
[1769993972298,8.8069,102.29,102.22,16.56530935]
[1769993973400,8.8078,102.28,102.22,16.56530935]
[1769993973602,424.33284536,102.29,102.22,16.56530935]
[1769993974198,432.9173,102.35,102.22,16.56530935]
[1769993974199,136.9574,102.32,102.23,16.5522869]
[1769993974505,146.92544536,102.31,102.23,16.5522869]
[1769993974704,8.807,102.29,102.23,16.5522869]
[1769993975996,18.76304536,102.29,102.21,16.55359495]
[1769993976202,8.8077,102.28,102.21,16.55359495]
[1769993976608,8.8086,102.27,102.21,16.55359495]
[1769993976900,18.76464536,102.27,102.2,16.61285277]
[1769993977102,9.95604536,102.25,102.18,16.61285277]
[1769993977806,18.76654536,102.25,102.18,25.42905277]
[1769993978202,18.76654536,102.25,102.18,16.61285277]
[1769993980101,18.76654536,102.25,102.18,25.42905277]
[1769993981107,8.8112,102.24,102.17,8.8166]
[1769993981406,8.8112,102.24,102.17,25.42072405]
[1769993981595,9.95604536,102.25,102.18,16.60412405]
[1769993982300,18.76634536,102.25,102.19,16.6321019]
[1769993982498,9.95604536,102.25,102.17,16.6321019]
[1769993982805,9.95604536,102.23,102.17,16.6321019]
[1769993985307,9.95604536,102.23,102.13,137.1983]
[1769993985308,9.95604536,102.23,102.15,16.66296861]
[1769993986309,8.8131,102.22,102.15,25.48176861]
[1769993986512,9.95604536,102.21,102.15,16.66296861]
[1769993987006,18.77004536,102.21,102.15,16.66296861]
[1769993988307,18.76884536,102.23,102.16,16.60629338]
[1769993988510,8.8128,102.23,102.16,16.60629338]
[1769993988811,163.81604536,102.25,102.16,16.60629338]
[1769993990412,163.81604536,102.25,102.15,137.182]
[1769993990413,8.8111,102.24,102.18,16.60513442]
[1769993990616,163.81604536,102.25,102.18,16.60513442]
[1769993990913,172.62634536,102.25,102.18,25.42133442]
[1769993991212,18.76634536,102.25,102.18,25.42133442]
[1769993991710,18.76534536,102.27,102.2,16.60513442]
[1769993991914,8.8093,102.27,102.2,16.60513442]
[1769993992116,9.95604536,102.29,102.21,16.60513442]
[1769993992304,8.8077,102.29,102.22,16.57002177]
[1769993994413,8.8077,102.29,102.23,16.41267658]
[1769993995216,8.8081,102.28,102.21,16.41267658]
[1769993996911,8.8081,102.28,102.21,25.22637658]
[1769993997410,9.95604536,102.29,102.17,16.26966876]
[1769993997616,8.8099,102.26,102.19,8.815]
[1769993997918,8.8099,102.26,102.19,25.08466876]
[1769994000326,8.8099,102.26,102.2,16.25456535]
[1769994000518,134.94,102.28,102.21,16.25456535]
[1769994001318,134.94,102.28,102.21,25.06826535]
[1769994001710,134.94,102.28,102.21,16.25456535]
[1769994002014,134.94,102.28,102.19,16.25456535]
[1769994002015,146.97872289,102.27,102.19,16.25456535]
[1769994002314,146.96172289,102.29,102.2,16.29794813]
[1769994002520,9.95512289,102.31,102.22,16.29794813]
[1769994002815,146.88142289,102.35,102.26,16.29794813]
[1769994003016,146.87182289,102.35,102.27,25.10644813]
[1769994003820,146.87182289,102.35,102.27,16.29794813]
[1769994004017,136.9331,102.34,102.27,16.29794813]
[1769994004321,146.89742289,102.33,102.25,16.29794813]
[1769994004915,8.8052,102.31,102.25,16.29794813]
[1769994005115,137.0122,102.28,102.19,16.25533303]
[1769994005316,9.95512289,102.27,102.2,16.25533303]
[1769994005515,146.95432289,102.29,102.2,16.25533303]
[1769994006213,137.0433,102.26,102.16,16.18826669]
[1769994006422,9.95512289,102.25,102.16,16.18826669]
[1769994006614,272.71862289,102.27,102.18,16.18826669]
[1769994006821,137.0385,102.26,102.18,16.18826669]
[1769994007022,135.69512289,102.27,102.18,16.18826669]
[1769994007023,147.00882289,102.25,102.18,16.18826669]
[1769994007225,8.8121,102.23,102.18,16.18826669]
[1769994007918,147.00882289,102.25,102.18,16.18826669]
[1769994008425,147.00582289,102.25,102.18,16.18826669]
[1769994009326,8.8112,102.24,102.18,16.18826669]
[1769994009522,9.95512289,102.23,102.15,16.22180824]
[1769994009725,8.8129,102.22,102.15,16.22180824]
[1769994010324,8.8129,102.22,102.15,25.04060824]
[1769994010626,8.8129,102.22,102.16,16.28801642]
[1769994010926,155.83102289,102.24,102.16,16.28801642]
[1769994011125,137.0803,102.23,102.16,16.28801642]
[1769994011326,8.8138,102.21,102.14,16.28801642]
[1769994012321,18.76782289,102.23,102.15,16.27940426]
[1769994013025,18.76782289,102.23,102.15,25.09810426]
[1769994013527,18.76782289,102.23,102.16,16.27940426]
[1769994016524,147.05852289,102.21,102.12,16.23131863]
[1769994016727,9.95512289,102.21,102.12,16.23131863]
[1769994017028,147.05882289,102.21,102.12,16.23131863]
[1769994017525,374.91512289,102.21,102.13,16.23131863]
[1769994017725,374.91512289,102.21,102.14,16.23131863]
[1769994017726,364.96,102.21,102.14,16.23131863]
[1769994018428,373.7739,102.21,102.14,25.05101863]
[1769994018620,373.7739,102.21,102.12,137.2216]
[1769994018621,373.7739,102.21,102.15,16.1475663]
[1769994019225,8.8147,102.2,102.15,16.1475663]
[1769994020226,8.8147,102.2,102.12,16.08535916]
[1769994020227,8.8156,102.19,102.12,16.08535916]
[1769994020427,9.95512289,102.19,102.12,16.08535916]
[1769994020627,366.52,102.2,102.12,16.08535916]
[1769994021128,366.52,102.2,102.14,16.08535916]
[1769994021129,8.8147,102.2,102.14,16.08535916]
[1769994021325,366.76,102.22,102.15,16.08535916]
[1769994021528,146.98122289,102.27,102.18,16.08535916]
[1769994021727,513.86122289,102.27,102.18,16.08535916]
[1769994021923,366.88,102.27,102.2,16.08535916]
[1769994022234,514.02132289,102.29,102.2,16.08535916]
[1769994022832,8.8077,102.28,102.21,8.8137]
[1769994023527,8.8077,102.28,102.2,16.08535916]
[1769994024233,8.8077,102.28,102.21,16.09202119]
[1769994025834,250.62,102.29,102.22,24.92374742]
[1769994026029,8.8066,102.3,102.23,16.11104742]
[1769994027039,258.54,102.31,102.23,24.92274742]
[1769994027235,386.75532866,102.32,102.23,16.11104742]
[1769994027739,386.75532866,102.32,102.24,8.811]
[1769994027936,514.90942866,102.32,102.23,16.11104742]
[1769994028337,514.90942866,102.32,102.23,24.92294742]
[1769994028936,146.93542866,102.3,102.21,24.92138006]
[1769994029137,9.95042866,102.3,102.21,16.10828006]
[1769994029440,9.95042866,102.3,102.22,24.92098006]
[1769994029441,18.75712866,102.3,102.22,24.92098006]
[1769994029641,9.95042866,102.3,102.22,24.92098006]
[1769994029940,8.8078,102.28,102.22,16.10828006]
[1769994030137,368.6,102.31,102.22,16.10828006]
[1769994030741,8.8067,102.3,102.22,24.92088006]
[1769994030942,9.95042866,102.3,102.22,24.92088006]
[1769994032337,8.807,102.29,102.22,24.92088006]
[1769994032738,136.9971,102.29,102.2,8.814]
[1769994032943,136.9971,102.29,102.2,24.91048593]
[1769994033143,505.3571,102.29,102.2,24.91048593]
[1769994033343,9.95042866,102.28,102.2,24.91048593]
[1769994033746,377.2087,102.27,102.2,16.09648593]
[1769994034143,8.8087,102.27,102.2,16.09648593]
[1769994034844,8.8097,102.26,102.2,16.09648593]
[1769994035739,535.48572866,102.28,102.2,16.09648593]
[1769994035740,29.95042866,102.28,102.2,16.09648593]
[1769994036049,20.0,102.28,102.2,16.09648593]
[1769994036845,20.0,102.28,102.16,9.95042866]
[1769994036846,368.86,102.3,102.22,16.11475411]
[1769994037042,9.95042866,102.32,102.23,16.11475411]
[1769994037249,388.64,102.33,102.24,16.11475411]
[1769994037548,368.64,102.33,102.26,16.11475411]
[1769994038848,505.5906,102.33,102.24,24.93234815]
[1769994039054,9.95042866,102.32,102.24,24.93234815]
[1769994039448,8.8054,102.31,102.24,24.93234815]
[1769994039752,9.95042866,102.32,102.25,16.12164815]
[1769994040054,146.90762866,102.32,102.25,16.12164815]
[1769994040250,8.8062,102.3,102.22,16.12164815]
[1769994040452,9.95042866,102.3,102.22,16.12164815]
[1769994041350,516.65482866,102.3,102.22,16.12164815]
[1769994041654,146.98682866,102.26,102.18,16.14766685]
[1769994041850,8.8112,102.24,102.18,16.14766685]
[1769994042056,9.95042866,102.24,102.18,16.14766685]
[1769994042249,9.95042866,102.22,102.15,16.14766685]
[1769994042951,147.01382866,102.24,102.15,16.14766685]
[1769994043456,370.14,102.23,102.15,16.14766685]
[1769994044156,147.08152866,102.19,102.1,16.15429735]
[1769994044352,144.84,102.18,102.1,16.15429735]
[1769994044854,144.84,102.18,102.11,16.15634983]
[1769994045256,399.02522866,102.21,102.11,16.15634983]
[1769994045755,399.02522866,102.21,102.12,16.15634983]
[1769994045756,145.9327,102.2,102.12,16.15634983]
[1769994046554,147.08312866,102.19,102.12,16.15634983]
[1769994047256,8.8165,102.18,102.12,16.15634983]
[1769994047554,9.95042866,102.19,102.12,16.15634983]
[1769994047858,8.8152,102.2,102.12,16.15634983]
[1769994048450,8.8152,102.2,102.12,24.97754983]
[1769994049452,8.8152,102.2,102.12,16.15634983]
[1769994050454,8.8157,102.19,102.12,16.15634983]
[1769994050656,18.76612866,102.19,102.12,16.15634983]
[1769994051663,8.8165,102.18,102.12,16.15634983]
[1769994051861,8.8165,102.18,102.09,16.05871447]
[1769994051862,9.95042866,102.17,102.09,16.05871447]
[1769994052362,8.8184,102.16,102.09,16.05871447]
[1769994052558,9.95042866,102.15,102.07,16.0585545]
[1769994052763,147.13692866,102.15,102.07,16.0585545]
[1769994053561,18.77122866,102.13,102.07,16.0585545]
[1769994053752,20.0,102.17,102.07,16.0585545]
[1769994053753,9.95042866,102.15,102.07,16.0585545]
[1769994054056,380.41042866,102.15,102.07,16.0585545]
[1769994054463,8.82,102.14,102.07,16.0585545]
[1769994054964,8.8187,102.16,102.08,16.04490231]
[1769994055359,370.72,102.17,102.08,16.04490231]
[1769994056063,379.5373,102.17,102.09,16.04490231]
[1769994056459,147.10732866,102.17,102.09,16.04490231]
[1769994056766,8.819,102.15,102.09,16.04490231]
[1769994058464,18.76942866,102.15,102.09,16.04490231]
[1769994058664,8.82,102.14,102.09,16.04490231]
[1769994059060,8.82,102.14,102.07,16.02753233]
[1769994059569,147.16202866,102.13,102.04,24.85553233]
[1769994059763,147.16202866,102.13,102.05,16.02753233]
[1769994060065,8.8236,102.1,102.03,16.02753233]
[1769994060263,371.96,102.12,102.04,153.35323233]
[1769994060456,519.10532866,102.15,102.06,16.00771682]
[1769994060657,8.8207,102.13,102.06,16.00771682]
[1769994060868,381.91042866,102.15,102.06,16.00771682]
[1769994061067,137.1829,102.16,102.07,16.00771682]
[1769994061266,509.3429,102.16,102.07,16.00771682]
[1769994061470,509.3429,102.16,102.08,16.00771682]
[1769994061770,372.16,102.16,102.08,16.00771682]
[1769994062570,9.95042866,102.27,102.1,16.04073789]
[1769994062571,137.1417,102.19,102.1,16.04073789]
[1769994062764,510.0039,102.18,102.1,16.04073789]
[1769994063264,372.86,102.18,102.11,16.04073789]
[1769994063470,147.05202866,102.22,102.13,16.04073789]
[1769994063672,259.82,102.21,102.13,16.04073789]
[1769994063862,268.6343,102.21,102.13,16.04073789]
[1769994064062,259.82,102.21,102.14,16.04073789]
[1769994064266,373.58,102.23,102.14,16.04073789]
[1769994064567,147.04172866,102.22,102.14,16.04073789]
[1769994064764,137.0771,102.23,102.14,16.04073789]
[1769994064966,8.8127,102.23,102.15,24.84570504]
[1769994065167,137.0813,102.23,102.15,16.02720504]
[1769994065562,8.813,102.22,102.15,16.02720504]
[1769994066367,8.813,102.22,102.15,24.84590504]